fUSD/lending_fUSD_20250202
["ID","MTS","AMOUNT","RATE_DAILY","PERIOD"]
[351298261,1738509040095,-940.3,0.00011365,2]
[351298262,1738509040104,-500.0,0.00011365,2]
[351298263,1738509040113,-3774.98,0.00011365,2]
[351298264,1738509040122,-500.0,0.00011365,2]
[351298265,1738509040130,-500.0,0.00011365,2]
[351298266,1738509040139,-500.0,0.00011365,2]
[351298267,1738509040148,-500.0,0.00011365,2]
[351298268,1738509040157,-500.0,0.00011365,2]
[351298269,1738509040166,-942.06,0.00011365,2]
[351298270,1738509040175,-500.0,0.00011365,2]
[351298271,1738509040184,-1347.65,0.00011365,2]
[351298272,1738509040194,-4045.04,0.00011365,2]
[351298273,1738509040204,-272.37,0.00011365,2]
[351298274,1738509040213,-500.0,0.00011365,2]
[351298275,1738509040223,-934.14,0.00011365,2]
[351298276,1738509040233,-1676.71,0.00011365,2]
[351298277,1738509040242,-549.07,0.00011365,2]
[351298278,1738509040251,-500.0,0.00011365,2]
[351298279,1738509040261,-500.0,0.00011365,2]
[351298280,1738509040271,-500.0,0.00011365,2]
[351298281,1738509040280,-1103.81,0.00011365,2]
[351298282,1738509040289,-547.47,0.00011365,2]
[351298283,1738509040300,-842.24,0.00011365,2]
[351298284,1738509040309,-656.43,0.00011365,2]
[351298285,1738509040319,-500.0,0.00011365,2]
[351298286,1738509040328,-500.0,0.00011365,2]
[351298287,1738509040337,-868.47,0.00011365,2]
[351298288,1738509040346,-5448.36,0.00011365,2]
[351298289,1738509040355,-2373.96,0.00011365,2]
[351298290,1738509040364,-500.0,0.00011365,2]
[351298291,1738509040374,-1633.72,0.00011365,2]
[351298293,1738509040383,-873.11,0.00011365,2]
[351298295,1738509040392,-500.0,0.00011365,2]
[351298297,1738509040404,-958.41,0.00011365,2]
[351298299,1738509040413,-500.0,0.00011365,2]
[351298301,1738509040422,-925.74,0.00011365,2]
[351298303,1738509040432,-500.0,0.00011365,2]
[351298304,1738509040441,-500.0,0.00011365,2]
[351298305,1738509040450,-500.0,0.00011365,2]
[351298306,1738509040459,-500.0,0.00011365,2]
[351298307,1738509040468,-500.0,0.00011366,2]
[351298308,1738509040477,-500.0,0.00011366,2]
[351298309,1738509040487,-500.0,0.00011366,2]
[351298310,1738509040495,-500.0,0.00011366,2]
[351298311,1738509040504,-500.0,0.00011366,2]
[351298312,1738509040513,-741.63,0.00011366,2]
[351298313,1738509040523,-529.27,0.00011366,2]
[351298314,1738509040531,-500.0,0.00011366,2]
[351298315,1738509040541,-1696.89,0.00011366,2]
[351298316,1738509040551,-500.0,0.00011366,2]
[351298317,1738509040560,-500.0,0.00011366,2]
[351298318,1738509040570,-500.0,0.00011366,2]
[351298319,1738509040579,-500.0,0.00011366,2]
[351298320,1738509040588,-500.0,0.00011366,2]
[351298321,1738509040597,-500.0,0.00011366,2]
[351298322,1738509040606,-500.0,0.00011366,2]
[351298323,1738509040617,-500.0,0.00011366,2]
[351298324,1738509040626,-500.0,0.00011366,2]
[351298325,1738509040635,-500.0,0.00011366,2]
[351298326,1738509040645,-500.0,0.00011366,2]
[351298327,1738509040654,-500.0,0.00011366,2]
[351298328,1738509040663,-1219.97,0.00011366,2]
[351298329,1738509040672,-500.0,0.00011366,2]
[351298330,1738509040682,-500.0,0.00011366,2]
[351298331,1738509040691,-500.0,0.00011366,2]
[351298332,1738509040700,-500.0,0.00011366,2]
[351298333,1738509040709,-500.0,0.00011366,2]
[351298334,1738509040718,-500.0,0.00011366,2]
[351298335,1738509040728,-500.0,0.00011366,2]
[351298336,1738509040737,-500.0,0.00011366,2]
[351298337,1738509040747,-500.0,0.00011366,2]
[351298338,1738509040761,-404.17697157,0.00011366,2]
[351298339,1738509040771,-500.0,0.00011366,2]
[351298340,1738509040780,-482.9860934,0.00011366,2]
[351298341,1738509040790,-500.0,0.00011366,2]
[351298342,1738509040801,-500.0,0.00011366,2]
[351298343,1738509040811,-525.0,0.00011366,2]
[351298344,1738509040820,-500.0,0.00011366,2]
[351298345,1738509040830,-500.0,0.00011366,2]
[351298346,1738509040839,-500.0,0.00011366,2]
[351298347,1738509040848,-622.55,0.00011366,2]
[351298348,1738509040857,-623.56,0.00011366,2]
[351298349,1738509040866,-500.0,0.00011366,2]
[351298350,1738509040875,-500.0,0.00011366,2]
[351298351,1738509040884,-500.0,0.00011366,2]
[351298352,1738509040893,-500.0,0.00011366,2]
[351298353,1738509040903,-500.0,0.00011366,2]
[351298354,1738509040912,-500.0,0.00011366,2]
[351298355,1738509040921,-650.4,0.00011366,2]
[351298356,1738509040930,-937.48,0.00011366,2]
[351298357,1738509040939,-500.0,0.00011366,2]
[351298358,1738509040948,-500.0,0.00011366,2]
[351298359,1738509040958,-500.0,0.00011366,2]
[351298360,1738509040966,-500.0,0.00011366,2]
[351298361,1738509040975,-500.0,0.00011366,2]
[351298362,1738509040985,-500.0,0.00011366,2]
[351298363,1738509040994,-500.0,0.00011366,2]
[351298364,1738509041004,-500.0,0.00011366,2]
[351298365,1738509041013,-538.63,0.00011366,2]
[351298366,1738509041022,-500.0,0.00011366,2]
[351298367,1738509041032,-888.68,0.00011366,2]
[351298368,1738509041041,-672.78,0.00011366,2]
[351298369,1738509041050,-500.0,0.00011366,2]
[351298370,1738509041059,-500.0,0.00011366,2]
[351298371,1738509041068,-670.63,0.00011366,2]
[351298372,1738509041077,-516.02,0.00011366,2]
[351298373,1738509041086,-640.52,0.00011366,2]
[351298374,1738509041095,-588.04,0.00011366,2]
[351298375,1738509041104,-595.27,0.00011366,2]
[351298376,1738509041113,-500.0,0.00011366,2]
[351298377,1738509041123,-500.0,0.00011366,2]
[351298378,1738509041132,-500.0,0.00011366,2]
[351298379,1738509041141,-553.21,0.00011366,2]
[351298380,1738509041150,-500.0,0.00011366,2]
[351298381,1738509041159,-500.0,0.00011366,2]
[351298382,1738509041168,-506.53,0.00011366,2]
[351298383,1738509041177,-500.0,0.00011366,2]
[351298384,1738509041186,-500.0,0.00011366,2]
[351298385,1738509041195,-533.16,0.00011366,2]
[351298386,1738509041205,-500.0,0.00011366,2]
[351298387,1738509041214,-624.26,0.00011366,2]
[351298388,1738509041223,-500.0,0.00011366,2]
[351298389,1738509041234,-500.0,0.00011366,2]
[351298390,1738509041243,-300.0,0.00011367,2]
[351298391,1738509041253,-1006.26165683,0.00011367,3]
[351298392,1738509041263,-406.12,0.00011367,2]
[351298393,1738509041273,-500.0,0.00011367,2]
[351298394,1738509041282,-500.0,0.00011367,2]
[351298395,1738509041299,-500.0,0.00011367,2]
[351298396,1738509041308,-500.0,0.00011367,2]
[351298397,1738509041318,-500.0,0.00011367,2]
[351298398,1738509041327,-761.36,0.00011367,2]
[351298399,1738509041337,-500.0,0.00011367,2]
[351298400,1738509041346,-723.99,0.00011367,2]
[351298401,1738509041356,-956.51,0.00011367,2]
[351298402,1738509041366,-786.91,0.00011367,2]
[351298403,1738509041376,-500.0,0.00011367,2]
[351298404,1738509041385,-500.0,0.00011367,2]
[351298405,1738509041396,-500.0,0.00011367,2]
[351298406,1738509041406,-1139.6,0.00011367,2]
[351298407,1738509041415,-549.87,0.00011367,2]
[351298408,1738509041424,-932.09,0.00011367,2]
[351298409,1738509041434,-351.54442257,0.00011367,2]
[351298410,1738509041444,-1149.46,0.00011367,2]
[351298411,1738509041454,-500.0,0.00011367,2]
[351298412,1738509041464,-526.01484732,0.00011367,2]
[351298413,1738509041474,-532.02,0.00011367,2]
[351298414,1738509041483,-500.0,0.00011367,2]
[351298415,1738509041493,-847.83,0.00011367,2]
[351298416,1738509041503,-840.14,0.00011367,2]
[351298417,1738509041513,-500.0,0.00011367,2]
[351298418,1738509041523,-500.0,0.00011367,2]
[351298419,1738509041533,-500.0,0.00011367,2]
[351298420,1738509041542,-500.0,0.00011367,2]
[351298421,1738509041552,-500.0,0.00011367,2]
[351298422,1738509041562,-500.0,0.00011367,2]
[351298423,1738509041572,-500.0,0.00011367,2]
[351298424,1738509041581,-500.0,0.00011367,2]
[351298425,1738509041591,-500.0,0.00011367,2]
[351298426,1738509041600,-500.0,0.00011367,2]
[351298427,1738509041610,-500.0,0.00011367,2]
[351298428,1738509041619,-500.0,0.00011367,2]
[351298429,1738509041628,-500.0,0.00011368,2]
[351298430,1738509041638,-500.0,0.00011368,2]
[351298431,1738509041647,-500.0,0.00011368,2]
[351298432,1738509041657,-500.0,0.00011368,2]
[351298433,1738509041666,-500.0,0.00011368,2]
[351298434,1738509041676,-500.0,0.00011368,2]
[351298435,1738509041685,-500.0,0.00011368,2]
[351298436,1738509041695,-500.0,0.00011368,2]
[351298437,1738509041705,-500.0,0.00011368,2]
[351298438,1738509041718,-500.0,0.00011368,2]
[351298439,1738509041727,-500.0,0.00011368,2]
[351298440,1738509041737,-500.0,0.00011368,2]
[351298441,1738509041751,-500.0,0.00011368,2]
[351298442,1738509041760,-500.0,0.00011368,2]
[351298443,1738509041770,-500.0,0.00011368,2]
[351298444,1738509041780,-500.0,0.00011368,2]
[351298445,1738509041790,-500.0,0.00011368,2]
[351298446,1738509041800,-500.0,0.00011368,2]
[351298447,1738509041810,-500.0,0.00011368,2]
[351298448,1738509041820,-500.0,0.00011368,2]
[351298449,1738509041829,-500.0,0.00011368,2]
[351298450,1738509041839,-500.0,0.00011368,2]
[351298451,1738509041848,-276.2189972,0.00011368,2]
[351298452,1738509041857,-529.69,0.00011368,2]
[351298453,1738509041867,-500.0,0.00011368,2]
[351298454,1738509041876,-500.0,0.00011368,2]
[351298455,1738509041886,-500.0,0.00011368,2]
[351298456,1738509041895,-500.0,0.00011368,2]
[351298457,1738509041905,-500.0,0.00011368,2]
[351298458,1738509041915,-500.0,0.00011368,2]
[351298459,1738509041925,-500.0,0.00011368,2]
[351298460,1738509041934,-500.0,0.00011368,2]
[351298461,1738509041944,-500.0,0.00011368,2]
[351298462,1738509041954,-500.0,0.00011368,2]
[351298463,1738509041963,-500.0,0.00011368,2]
[351298464,1738509041973,-500.0,0.00011368,2]
[351298465,1738509041983,-500.0,0.00011368,2]
[351298466,1738509041993,-500.0,0.00011368,2]
[351298467,1738509042002,-443.28,0.00011368,2]
[351298468,1738509042012,-500.0,0.00011368,2]
[351298469,1738509042022,-500.0,0.00011368,2]
[351298470,1738509042031,-500.0,0.00011368,2]
[351298471,1738509042041,-500.0,0.00011368,2]
[351298472,1738509042051,-500.0,0.00011368,2]
[351298473,1738509042060,-519.18068249,0.00011368,2]
[351298474,1738509042070,-523.80010598,0.00011368,2]
[351298475,1738509042080,-500.0,0.00011368,2]
[351298476,1738509042090,-500.0,0.00011368,2]
[351298477,1738509042100,-500.0,0.00011368,2]
[351298478,1738509042111,-500.0,0.00011368,2]
[351298479,1738509042123,-500.0,0.00011368,2]
[351298480,1738509042133,-500.0,0.00011368,2]
[351298481,1738509042143,-500.0,0.00011368,2]
[351298482,1738509042153,-500.0,0.00011368,2]
[351298483,1738509042167,-500.0,0.00011368,2]
[351298484,1738509042177,-500.0,0.00011368,2]
[351298485,1738509042188,-500.0,0.00011368,2]
[351298486,1738509042197,-500.0,0.00011368,2]
[351298487,1738509042207,-500.0,0.00011368,2]
[351298488,1738509042216,-500.0,0.00011368,2]
[351298489,1738509042226,-500.0,0.00011368,2]
[351298490,1738509042236,-514.42,0.00011368,2]
[351298491,1738509042245,-500.0,0.00011368,2]
[351298492,1738509042255,-500.0,0.00011368,2]
[351298493,1738509042265,-500.0,0.00011368,2]
[351298494,1738509042275,-500.0,0.00011368,2]
[351298495,1738509042286,-500.0,0.00011368,2]
[351298496,1738509042296,-500.0,0.00011368,2]
[351298497,1738509042306,-500.0,0.00011368,2]
[351298498,1738509042316,-500.0,0.00011368,2]
[351298499,1738509042326,-500.0,0.00011368,2]
[351298500,1738509042335,-500.0,0.00011385,2]
[351298501,1738509042345,-36278.30530213,0.00011385,2]
[351298502,1738509042355,-9133.393812,0.00011387,2]
[351298503,1738509042365,-500.0,0.00011466,2]
[351298504,1738509042374,-961.41,0.00011467,2]
[351298505,1738509042384,-500.0,0.00011467,2]
[351298506,1738509042394,-1858.7,0.00011467,2]
[351298507,1738509042404,-766.71,0.00011467,2]
[351298508,1738509042414,-1170.33,0.00011467,2]
[351298509,1738509042423,-1522.11,0.00011467,2]
[351298510,1738509042433,-1678.43,0.00011467,2]
[351298511,1738509042443,-2952.23,0.00011467,2]
[351298512,1738509042453,-9429.45,0.00011467,2]
[351298515,1738509042463,-848.57,0.00011467,2]
[351298518,1738509042473,-500.0,0.00011467,2]
[351298519,1738509042484,-825.28,0.00011467,2]
[351298520,1738509042494,-1532.77,0.00011467,2]
[351298521,1738509042503,-500.0,0.00011467,2]
[351298522,1738509042513,-1063.75,0.00011467,2]
[351298523,1738509042523,-1037.73,0.00011468,2]
[351298526,1738509042534,-1075.76,0.00011468,2]
[351298529,1738509042543,-809.15,0.00011468,2]
[351298532,1738509042553,-1000.0,0.00011468,2]
[351298534,1738509042563,-1620.5,0.00011468,2]
[351298537,1738509042573,-500.0,0.00011468,2]
[351298540,1738509042582,-1429.49,0.00011468,2]
[351298543,1738509042592,-1701.95,0.00011468,2]
[351298544,1738509042601,-36278.30530213,0.00011471,2]
[351298546,1738509042611,-9133.393812,0.00011473,2]
[351298549,1738509042621,-500.0,0.00011501,2]
[351298550,1738509042633,-507.0,0.00011501,2]
[351298551,1738509042643,-1144.71,0.00011501,2]
[351298552,1738509042652,-1893.88,0.00011501,2]
[351298553,1738509042662,-500.0,0.00011501,2]
[351298554,1738509042672,-643.88,0.00011501,2]
[351298555,1738509042682,-995.66,0.00011501,2]
[351298556,1738509042691,-2087.59,0.00011501,2]
[351298557,1738509042701,-3959.48,0.00011501,2]
[351298558,1738509042712,-846.12,0.00011501,2]
[351298559,1738509042721,-548.91,0.00011501,2]
[351298560,1738509042731,-1484.11,0.00011501,2]
[351298561,1738509042741,-500.0,0.00011501,2]
[351298562,1738509042754,-500.0,0.00011501,2]
[351298564,1738509042764,-1137.73,0.00011501,2]
[351298566,1738509042774,-788.57,0.00011501,2]
[351298567,1738509042784,-1015.84,0.00011501,2]
[351298570,1738509042795,-202.80724929,0.00011502,3]
[351298572,1738509042806,-208.79849551,0.00011502,2]
[351298574,1738509042817,-500.0,0.00011502,2]
[351298576,1738509042828,-500.0,0.00011502,2]
[351298578,1738509042839,-500.0,0.00011502,2]
[351298580,1738509042849,-500.0,0.00011502,2]
[351298582,1738509042860,-500.0,0.00011502,2]
[351298583,1738509042871,-603.95,0.00011502,2]
[351298584,1738509042882,-500.0,0.00011502,2]
[351298585,1738509042893,-500.0,0.00011502,2]
[351298586,1738509042903,-500.0,0.00011502,2]
[351298587,1738509042912,-500.0,0.00011502,2]
[351298588,1738509042923,-500.0,0.00011502,2]
[351298589,1738509042933,-500.0,0.00011502,2]
[351298590,1738509042943,-500.0,0.00011502,2]
[351298591,1738509042954,-500.0,0.00011502,2]
[351298592,1738509042964,-500.0,0.00011502,2]
[351298593,1738509042973,-500.0,0.00011502,2]
[351298594,1738509042983,-500.0,0.00011502,2]
[351298595,1738509042993,-500.0,0.00011502,2]
[351298596,1738509043003,-649.24,0.00011502,2]
[351298597,1738509043013,-500.0,0.00011502,2]
[351298598,1738509043023,-344.98223796,0.00011502,2]
[351298599,1738509043034,-500.0,0.00011502,2]
[351298600,1738509043043,-500.0,0.00011502,2]
[351298601,1738509043053,-500.0,0.00011502,2]
[351298602,1738509043063,-648.03,0.00011502,2]
[351298603,1738509043073,-245.20395043,0.00011502,2]
[351298604,1738509043083,-604.32,0.00011502,2]
[351298605,1738509043093,-500.0,0.00011502,2]
[351298606,1738509043103,-500.0,0.00011502,2]
[351298607,1738509043113,-242.16,0.00011502,2]
[351298608,1738509043123,-500.0,0.00011502,2]
[351298609,1738509043133,-500.0,0.00011502,2]
[351298610,1738509043143,-234.13834855,0.00011502,2]
[351298611,1738509043153,-633.12,0.00011502,2]
[351298612,1738509043163,-500.0,0.00011502,2]
[351298614,1738509043173,-500.0,0.00011502,2]
[351298616,1738509043183,-500.0,0.00011502,2]
[351298618,1738509043193,-500.0,0.00011502,2]
[351298621,1738509043203,-253.26,0.00011502,2]
[351298622,1738509043213,-500.0,0.00011502,2]
[351298623,1738509043223,-500.0,0.00011502,2]
[351298624,1738509043233,-500.0,0.00011502,2]
[351298625,1738509043243,-306.10962916,0.00011502,2]
[351298626,1738509043253,-500.0,0.00011502,2]
[351298627,1738509043263,-500.0,0.00011502,2]
[351298628,1738509043273,-500.0,0.00011502,2]
[351298629,1738509043283,-587.49,0.00011502,2]
[351298630,1738509043292,-153.27,0.00011502,2]
[351298631,1738509043303,-548.16,0.00011502,2]
[351298632,1738509043314,-266.880554,0.00011502,2]
[351298633,1738509043324,-500.0,0.00011502,2]
[351298634,1738509043334,-500.0,0.00011502,2]
[351298635,1738509043345,-500.0,0.00011502,2]
[351298636,1738509043355,-500.0,0.00011502,2]
[351298637,1738509043365,-500.0,0.00011502,2]
[351298638,1738509043375,-500.0,0.00011502,2]
[351298639,1738509043385,-500.0,0.00011502,2]
[351298640,1738509043396,-500.0,0.00011502,2]
[351298641,1738509043405,-500.0,0.00011502,2]
[351298642,1738509043415,-452.34,0.00011502,2]
[351298643,1738509043425,-631.98,0.00011502,2]
[351298644,1738509043434,-500.0,0.00011502,2]
[351298645,1738509043444,-500.0,0.00011502,2]
[351298646,1738509043455,-575.17954405,0.00011502,2]
[351298647,1738509043695,-500.0,0.00011502,2]
[351298648,1738509043706,-197.57927,0.00011502,2]
[351298649,1738509043716,-500.0,0.00011502,2]
[351298650,1738509043726,-500.0,0.00011502,2]
[351298651,1738509043736,-377.36918617,0.00011502,2]
[351298652,1738509043746,-500.0,0.00011502,2]
[351298653,1738509043761,-500.0,0.00011502,2]
[351298654,1738509043771,-603.39,0.00011502,2]
[351298655,1738509043781,-500.0,0.00011502,2]
[351298656,1738509043792,-500.0,0.00011502,2]
[351298657,1738509043802,-572.64,0.00011502,2]
[351298658,1738509043812,-620.04,0.00011502,2]
[351298659,1738509043822,-793.77,0.00011502,2]
[351298660,1738509043833,-500.0,0.00011502,2]
[351298661,1738509043843,-500.0,0.00011502,2]
[351298662,1738509043852,-500.0,0.00011502,2]
[351298663,1738509043862,-500.0,0.00011502,2]
[351298664,1738509043872,-500.0,0.00011502,2]
[351298665,1738509043881,-1514.01,0.00011502,2]
[351298666,1738509043891,-500.0,0.00011502,2]
[351298667,1738509043900,-500.0,0.00011502,2]
[351298668,1738509043909,-500.0,0.00011502,2]
[351298669,1738509043919,-619.92,0.00011502,2]
[351298670,1738509043929,-500.0,0.00011502,2]
[351298671,1738509043938,-500.0,0.00011502,2]
[351298672,1738509043948,-593.29,0.00011502,2]
[351298673,1738509043959,-500.0,0.00011502,2]
[351298674,1738509043968,-500.0,0.00011502,2]
[351298675,1738509043978,-500.0,0.00011502,2]
[351298676,1738509043987,-500.0,0.00011502,2]
[351298677,1738509043997,-500.0,0.00011502,2]
[351298678,1738509044007,-500.0,0.00011502,2]
[351298679,1738509044017,-722.25,0.00011502,2]
[351298680,1738509044027,-500.0,0.00011502,2]
[351298681,1738509044036,-500.0,0.00011502,2]
[351298682,1738509044046,-500.0,0.00011502,2]
[351298683,1738509044056,-768.02,0.00011502,2]
[351298684,1738509044066,-500.0,0.00011502,2]
[351298685,1738509044076,-500.0,0.00011502,2]
[351298686,1738509044086,-796.48,0.00011502,2]
[351298687,1738509044095,-500.0,0.00011502,2]
[351298688,1738509044105,-500.0,0.00011502,2]
[351298689,1738509044115,-500.0,0.00011502,2]
[351298690,1738509044125,-500.0,0.00011502,2]
[351298691,1738509044134,-518.54,0.00011502,2]
[351298692,1738509044144,-2490.0,0.00011502,2]
[351298693,1738509044153,-500.0,0.00011502,2]
[351298694,1738509044163,-500.0,0.00011502,2]
[351298695,1738509044172,-687.42,0.00011502,2]
[351298696,1738509044181,-755.99,0.00011502,2]
[351298697,1738509044191,-500.0,0.00011502,2]
[351298698,1738509044201,-631.91,0.00011502,2]
[351298699,1738509044211,-348.15,0.00011502,2]
[351298700,1738509044222,-500.0,0.00011502,2]
[351298701,1738509044232,-792.41,0.00011502,2]
[351298702,1738509044241,-500.0,0.00011502,2]
[351298703,1738509044251,-500.0,0.00011502,2]
[351298704,1738509044261,-1169.86,0.00011502,2]
[351298705,1738509044271,-500.0,0.00011502,2]
[351298706,1738509044281,-500.0,0.00011502,2]
[351298707,1738509044291,-713.69,0.00011502,2]
[351298708,1738509044301,-500.0,0.00011502,2]
[351298709,1738509044311,-500.0,0.00011502,2]
[351298710,1738509044322,-500.0,0.00011502,2]
[351298711,1738509044331,-500.0,0.00011502,2]
[351298712,1738509044341,-500.0,0.00011502,2]
[351298713,1738509044351,-500.0,0.00011502,2]
[351298714,1738509044362,-500.0,0.00011502,2]
[351298715,1738509044372,-500.0,0.00011502,2]
[351298716,1738509044381,-500.0,0.00011502,2]
[351298717,1738509044391,-500.0,0.00011502,2]
[351298718,1738509044401,-500.0,0.00011502,2]
[351298719,1738509044411,-500.0,0.00011502,2]
[351298720,1738509044420,-1075.41,0.00011502,2]
[351298721,1738509044430,-505.6,0.00011502,2]
[351298722,1738509044439,-500.0,0.00011502,2]
[351298723,1738509044449,-500.0,0.00011502,2]
[351298724,1738509044459,-500.0,0.00011502,2]
[351298725,1738509044468,-1702.89,0.00011502,2]
[351298726,1738509044478,-500.0,0.00011502,2]
[351298727,1738509044487,-500.0,0.00011502,2]
[351298728,1738509044497,-741.62,0.00011502,2]
[351298729,1738509044507,-500.0,0.00011502,2]
[351298730,1738509044516,-879.04,0.00011502,2]
[351298731,1738509044525,-1102.18,0.00011502,2]
[351298732,1738509044534,-500.0,0.00011502,2]
[351298733,1738509044543,-824.59,0.00011502,2]
[351298734,1738509044553,-1362.96,0.00011502,2]
[351298735,1738509044563,-500.0,0.00011502,2]
[351298736,1738509044573,-500.0,0.00011502,2]
[351298737,1738509044583,-516.18764366,0.00011502,2]
[351298738,1738509044593,-500.0,0.00011502,2]
[351298739,1738509044603,-984.81,0.00011502,2]
[351298740,1738509044613,-1459.42,0.00011502,2]
[351298741,1738509044623,-3568.69,0.00011502,2]
[351298742,1738509044633,-3396.6,0.00011502,2]
[351298743,1738509044643,-500.0,0.00011502,2]
[351298744,1738509044652,-1017.83,0.00011502,2]
[351298745,1738509044662,-2119.42,0.00011502,2]
[351298746,1738509044671,-721.46,0.00011502,2]
[351298747,1738509044680,-500.0,0.00011502,2]
[351298748,1738509044690,-1173.33,0.00011502,2]
[351298749,1738509044700,-841.66,0.00011502,2]
[351298750,1738509044710,-2223.55,0.00011502,2]
[351298751,1738509044720,-500.0,0.00011502,2]
[351298752,1738509044729,-659.43,0.00011502,2]
[351298753,1738509044739,-2149.13,0.00011502,2]
[351298754,1738509044753,-939.31,0.00011502,2]
[351298755,1738509044762,-500.0,0.00011502,2]
[351298756,1738509044772,-500.0,0.00011502,2]
[351298757,1738509044782,-500.0,0.00011502,2]
[351298758,1738509044793,-1948.92,0.00011502,2]
[351298759,1738509044803,-2088.25,0.00011502,2]
[351298760,1738509044813,-500.0,0.00011502,2]
[351298761,1738509044823,-2240.5,0.00011502,2]
[351298762,1738509044833,-500.0,0.00011502,2]
[351298763,1738509044843,-500.0,0.00011502,2]
[351298764,1738509044853,-1005.09,0.00011502,2]
[351298765,1738509044862,-500.0,0.00011502,2]
[351298766,1738509044872,-500.0,0.00011502,2]
[351298767,1738509044881,-500.0,0.00011502,2]
[351298768,1738509044891,-500.0,0.00011502,2]
[351298769,1738509044899,-500.0,0.00011502,2]
[351298770,1738509044909,-999.63,0.00011502,2]
[351298771,1738509044919,-500.0,0.00011502,2]
[351298772,1738509044928,-500.0,0.00011502,2]
[351298773,1738509044937,-1978.46,0.00011502,2]
[351298774,1738509044946,-500.0,0.00011502,2]
[351298775,1738509044955,-4322.96,0.00011502,2]
[351298776,1738509044964,-924.06,0.00011502,2]
[351298777,1738509044974,-1885.88,0.00011502,2]
[351298778,1738509044984,-500.0,0.00011502,2]
[351298779,1738509044993,-540.14,0.00011502,2]
[351298780,1738509045003,-2839.36,0.00011502,2]
[351298781,1738509045013,-500.0,0.00011502,2]
[351298782,1738509045023,-500.0,0.00011502,2]
[351298783,1738509045032,-2577.93,0.00011502,2]
[351298784,1738509045041,-2117.27,0.00011502,2]
[351298785,1738509045053,-2621.55,0.00011502,2]
[351298786,1738509045063,-500.0,0.00011502,2]
[351298787,1738509045073,-500.0,0.00011502,2]
[351298788,1738509045083,-940.3,0.00011502,2]
[351298789,1738509045093,-500.0,0.00011502,2]
[351298790,1738509045103,-3774.98,0.00011502,2]
[351298791,1738509045113,-500.0,0.00011502,2]
[351298792,1738509045123,-500.0,0.00011502,2]
[351298793,1738509045134,-500.0,0.00011502,2]
[351298794,1738509045144,-390.19612394,0.00011502,2]
[351298795,1738509045154,-193.39200335,0.00011502,2]
[351298796,1738509045164,-942.06,0.00011502,2]
[351298797,1738509045174,-500.0,0.00011502,2]
[351298798,1738509045184,-1347.65,0.00011502,2]
[351298799,1738509045194,-4045.04,0.00011502,2]
[351298800,1738509045204,-500.0,0.00011502,2]
[351298801,1738509045215,-934.14,0.00011502,2]